bitfinex/quotes_SOLUSD_20250209
["timestamp","ask_amount","ask_price","bid_price","bid_amount"]
[1739138174390,126.41184853,195.11,195.1,41.16858713]
[1739138175406,1.0,195.06,195.03,20.0]
[1739138175705,2.0,195.06,195.05,41.16858713]
[1739138176199,5.47798756,195.06,195.05,41.16858713]
[1739138176905,2.0,195.06,195.05,41.16858713]
[1739138177581,15.41184853,195.06,195.04,41.16858713]
[1739138177781,1.0,195.05,195.04,41.16858713]
[1739138177984,1.0,194.99,194.91,0.03]
[1739138178183,2.0,194.99,194.91,0.03]
[1739138178509,1.0,194.96,194.91,0.03]
[1739138178689,2.0,194.96,194.91,0.03]
[1739138178890,1.0,194.95,194.91,0.03]
[1739138179094,1.0,194.95,194.94,41.16858713]
[1739138179486,2.0,194.95,194.94,41.16858713]
[1739138179687,15.41184853,194.95,194.94,41.16858713]
[1739138181591,2.0,194.93,194.92,41.16858713]
[1739138181792,32.0,194.92,194.91,0.03]
[1739138182475,45.41184853,194.92,194.91,0.03]
[1739138182874,2.0,194.84,194.83,41.16858713]
[1739138183071,1.0,194.84,194.83,41.16858713]
[1739138183289,1.0,194.85,194.83,41.16858713]
[1739138183513,2.0,194.85,194.84,41.16858713]
[1739138183999,1.0,194.84,194.83,41.16858713]
[1739138184190,2.0,194.83,194.82,41.16858713]
[1739138184877,2.0,194.83,194.8,0.03]
[1739138184878,2.0,194.81,194.8,0.03]
[1739138185103,15.41184853,194.81,194.8,0.03]
[1739138185286,14.41184853,194.81,194.8,41.19858713]
[1739138185491,15.41184853,194.81,194.8,0.03]
[1739138185689,17.05744853,194.81,194.8,0.03]
[1739138185891,0.90447006,194.71,194.61,0.09552994]
[1739138186191,0.90447006,194.73,194.64,5.1676]
[1739138186374,30.0,194.77,194.64,5.1676]
[1739138186375,0.90447006,194.72,194.67,20.0]
[1739138186578,0.90447006,194.72,194.71,41.16858713]
[1739138186779,1.90447006,194.72,194.71,41.16858713]
[1739138187010,0.90447006,194.71,194.7,41.16858713]
[1739138187212,1.0,194.72,194.69,41.16858713]
[1739138187213,1.90447006,194.7,194.69,41.16858713]
[1739138187789,0.90447006,194.7,194.69,41.16858713]
[1739138188516,1.90447006,194.7,194.69,41.16858713]
[1739138188687,0.90447006,194.7,194.69,41.16858713]
[1739138189930,1.90447006,194.7,194.69,41.16858713]
[1739138190386,1.90447006,194.69,194.64,0.03]
[1739138190586,1.90447006,194.69,194.68,41.16858713]
[1739138190800,0.90447006,194.69,194.68,41.16858713]
[1739138191820,1.90447006,194.69,194.68,41.16858713]
[1739138192023,1.90447006,194.66,194.65,41.16858713]
[1739138192902,30.0,194.69,194.64,0.03]
[1739138192903,1.90447006,194.65,194.64,41.19858713]
[1739138193295,1.90447006,194.65,194.64,0.03]
[1739138193529,31.90447006,194.65,194.64,0.03]
[1739138195697,31.40447006,194.65,194.64,0.03]
[1739138196906,30.0,194.63,194.61,16.17112536]
[1739138197203,30.5,194.63,194.61,16.17112536]
[1739138197404,30.5,194.63,194.6,0.03]
[1739138197405,1.40447006,194.62,194.6,41.19858713]
[1739138197600,0.5,194.61,194.6,41.19858713]
[1739138197808,1.40447006,194.61,194.6,41.19858713]
[1739138198218,1.40447006,194.61,194.6,0.03]
[1739138198798,1.40447006,194.61,194.6,41.19858713]
[1739138199197,31.40447006,194.61,194.6,0.03]
[1739138200303,0.90447006,194.61,194.6,25.42495563]
[1739138200704,1.40447006,194.61,194.6,25.42495563]
[1739138200907,1.40447006,194.61,194.6,0.03]
[1739138201216,31.40447006,194.61,194.6,0.03]
[1739138203305,1.40447006,194.61,194.6,0.03]
[1739138203618,1.40447006,194.61,194.6,25.42495563]
[1739138204209,0.90447006,194.62,194.6,25.42495563]
[1739138204523,0.90447006,194.62,194.61,25.39495563]
[1739138204820,1.40447006,194.62,194.61,25.39495563]
[1739138205004,6.12,194.66,194.6,0.03]
[1739138205005,31.40447006,194.61,194.6,0.03]
[1739138206523,1.40447006,194.61,194.6,0.03]
[1739138206699,1.40447006,194.61,194.6,25.42495563]
[1739138207601,1.0,194.57,194.48,13.41184853]
[1739138207804,1.0,194.57,194.55,25.39495563]
[1739138207805,2.0,194.57,194.55,25.39495563]
[1739138207999,2.0,194.56,194.55,25.39495563]
[1739138208217,1.0,194.56,194.55,25.39495563]
[1739138208425,1.0,194.57,194.55,25.39495563]
[1739138208615,1.0,194.57,194.56,25.39495563]
[1739138210316,2.0,194.57,194.56,25.39495563]
[1739138211006,1.0,194.57,194.56,25.39495563]
[1739138211209,82.0,194.6,194.56,25.39495563]
[1739138211416,82.0,194.6,194.59,25.39495563]
[1739138211617,83.0,194.6,194.59,25.39495563]
[1739138211821,82.0,194.6,194.59,25.39495563]
[1739138212208,1.0,194.62,194.59,50.78991126]
[1739138212416,1.0,194.65,194.61,25.39495563]
[1739138212618,1.0,194.68,194.64,25.39495563]
[1739138212931,1.0,194.69,194.67,25.39495563]
[1739138213117,1.0,194.69,194.68,25.39495563]
[1739138214433,1.0,194.65,194.6,25.39495563]
[1739138214611,1.0,194.64,194.6,25.39495563]
[1739138214940,1.0,194.68,194.6,25.39495563]
[1739138215113,1.0,194.66,194.6,25.39495563]
[1739138215309,1.0,194.66,194.65,25.39495563]
[1739138216636,1.0,194.64,194.63,25.39495563]
[1739138216828,1.0,194.6,194.52,5.1406]
[1739138217035,1.0,194.59,194.52,5.1406]
[1739138217224,1.0,194.58,194.51,10.9848]
[1739138217537,1.0,194.56,194.5,25.39495563]
[1739138218038,2.0,194.54,194.5,25.39495563]
[1739138218336,2.0,194.55,194.53,25.39495563]
[1739138218634,2.0,194.55,194.54,25.39495563]
[1739138218844,1.0,194.57,194.54,25.39495563]
[1739138219024,2.0,194.57,194.56,25.39495563]
[1739138219221,1.0,194.58,194.56,25.39495563]
[1739138219426,1.0,194.59,194.57,25.39495563]
[1739138219622,1.0,194.62,194.58,25.39495563]
[1739138219821,2.0,194.62,194.61,25.39495563]
[1739138220021,1.0,194.62,194.61,25.39495563]
[1739138220218,81.0,194.64,194.61,25.39495563]
[1739138220424,82.0,194.64,194.63,25.39495563]
[1739138221116,81.0,194.64,194.63,25.39495563]
[1739138221320,1.0,194.68,194.63,30.53285563]
[1739138221529,1.0,194.68,194.67,25.39495563]
[1739138222226,0.063,194.7,194.67,50.78991126]
[1739138222427,0.063,194.7,194.69,50.78991126]
[1739138222738,81.0,194.72,194.71,25.39495563]
[1739138223135,82.0,194.72,194.71,25.39495563]
[1739138223347,83.0,194.71,194.7,25.39495563]
[1739138223558,1.0,194.7,194.69,25.39495563]
[1739138223729,1.0,194.7,194.69,41.2169652]
[1739138223927,2.0,194.69,194.68,41.2169652]
[1739138224349,81.0,194.71,194.68,41.2169652]
[1739138224544,81.0,194.71,194.7,41.2169652]
[1739138224748,82.0,194.71,194.7,41.2169652]
[1739138224951,83.0,194.71,194.7,41.2169652]
[1739138225159,83.0,194.71,194.69,41.2169652]
[1739138225331,1.0,194.66,194.6,41.2169652]
[1739138225848,1.0,194.66,194.65,41.2169652]
[1739138226221,81.0,194.71,194.65,41.2169652]
[1739138226449,1.0,194.76,194.7,82.4339304]
[1739138226654,1.0,194.77,194.7,41.2169652]
[1739138226866,82.0,194.8,194.74,20.0]
[1739138227156,81.0,194.8,194.74,20.0]
[1739138227331,0.063,194.81,194.78,20.0]
[1739138227526,1.0,194.84,194.78,20.0]
[1739138227739,1.0,194.85,194.78,20.0]
[1739138227953,81.0,194.88,194.78,20.0]
[1739138228133,81.0,194.88,194.87,82.4339304]
[1739138228449,1.0,194.94,194.87,82.4339304]
[1739138228652,1.0,194.92,194.85,20.0]
[1739138228825,2.0,194.94,194.85,20.0]
[1739138229028,1.0,194.94,194.86,13.41184853]
[1739138229252,1.0,194.96,194.93,41.2169652]
[1739138229548,1.0,194.96,194.95,41.2169652]
[1739138229753,2.0,194.96,194.95,41.2169652]
[1739138230342,1.0,194.98,194.95,41.2169652]
[1739138230540,82.0,194.99,194.97,41.2169652]
[1739138230744,2.0,194.98,194.9,41.2169652]
[1739138230948,2.0,194.98,194.97,41.2169652]
[1739138231452,1.0,194.98,194.97,41.2169652]
[1739138231647,81.0,194.99,194.97,41.2169652]
[1739138231853,1.0,195.05,194.98,82.4339304]
[1739138232030,0.063,195.06,195.04,41.2169652]
[1739138232234,0.063,195.06,195.05,41.2169652]
[1739138233447,1.063,195.06,195.05,41.2169652]
[1739138233638,2.063,195.06,195.05,41.2169652]
[1739138234655,2.063,195.06,195.04,41.2169652]
[1739138234965,2.063,195.06,194.9,41.2169652]
[1739138234966,1.0,195.01,195.0,41.2169652]
[1739138235265,2.0,195.01,195.0,41.2169652]
[1739138235954,82.0,195.05,195.0,82.4339304]
[1739138236149,81.0,195.05,195.04,41.2169652]
[1739138236347,82.0,195.05,195.04,41.2169652]
[1739138236563,81.0,195.05,195.04,41.2169652]
[1739138237256,0.063,195.06,195.04,41.2169652]
[1739138237460,0.063,195.06,195.05,41.2169652]
[1739138238776,82.0,195.14,195.07,20.0]
[1739138238976,0.063,195.2,195.13,41.2169652]
[1739138239141,0.063,195.2,195.19,41.2169652]
[1739138239676,2.063,195.2,195.19,41.2169652]
[1739138240761,0.063,195.2,195.19,41.2169652]
[1739138241075,0.063,195.2,195.19,82.4339304]
[1739138241771,1.063,195.26,195.2,5.1229]
[1739138241955,1.063,195.26,195.25,41.2169652]
[1739138241956,0.063,195.26,195.25,41.2169652]
[1739138243380,2.063,195.26,195.25,41.2169652]
[1739138243685,1.063,195.26,195.25,41.2169652]
[1739138243850,2.063,195.26,195.25,41.2169652]
[1739138244051,0.063,195.26,195.25,41.2169652]
[1739138244887,0.063,195.26,195.25,82.4339304]
[1739138245051,0.063,195.29,195.25,95.84577893]
[1739138245253,0.063,195.34,195.32,20.0]
[1739138245576,0.063,195.34,195.33,54.62881373]
[1739138245880,1.656,195.42,195.33,54.62881373]
[1739138246093,1.656,195.41,195.4,41.2169652]
[1739138246375,87.103,195.46,195.39,41.2169652]
[1739138246376,1.656,195.4,195.39,41.2169652]
[1739138246552,1.0,195.4,195.39,41.2169652]
[1739138246749,0.656,195.41,195.39,41.2169652]
[1739138246952,1.0,195.42,195.4,41.2169652]
[1739138247148,0.656,195.45,195.4,82.4339304]
[1739138247411,82.063,195.46,195.44,41.2169652]
[1739138247412,0.063,195.46,195.44,41.2169652]
[1739138247612,1.719,195.46,195.44,41.2169652]
[1739138247774,0.719,195.46,195.44,41.2169652]
[1739138247977,1.656,195.45,195.44,41.2169652]
[1739138248179,1.0,195.44,195.43,41.2169652]
[1739138248378,1.0,195.45,195.43,41.2169652]
[1739138248612,0.719,195.46,195.4,41.2169652]
[1739138248613,0.063,195.46,195.44,41.2169652]
[1739138248917,0.063,195.46,195.45,41.2169652]
[1739138249207,1.063,195.46,195.45,41.2169652]
[1739138249604,0.063,195.46,195.45,41.2169652]
[1739138249901,1.063,195.46,195.45,41.2169652]
[1739138250107,1.719,195.46,195.45,41.2169652]
[1739138250313,1.656,195.45,195.44,41.2169652]
[1739138250499,0.063,195.46,195.42,41.2169652]
[1739138250500,1.656,195.43,195.42,41.2169652]
[1739138250700,1.656,195.41,195.4,41.2169652]
[1739138252290,21.656,195.41,195.4,41.2169652]
[1739138252489,1.0,195.37,195.36,41.2169652]
[1739138252684,1.656,195.37,195.36,41.2169652]
[1739138253982,1.656,195.34,195.32,41.2169652]
[1739138254189,1.0,195.32,195.31,41.2169652]
[1739138254500,1.656,195.32,195.31,40.2169652]
[1739138254999,1.656,195.34,195.31,40.2169652]
[1739138255302,1.0,195.36,195.33,41.2169652]
[1739138255501,1.0,195.37,195.35,41.2169652]
[1739138255706,1.656,195.36,195.3,41.2169652]
[1739138255881,1.0,195.3,195.21,5.4666]
[1739138256208,1.0,195.29,195.2,46.6837652]
[1739138256384,1.0,195.29,195.21,13.41184853]
[1739138256704,1.156,195.27,195.2,41.2169652]
[1739138256886,1.156,195.27,195.26,41.2169652]
[1739138257080,1.156,195.26,195.25,41.2169652]
[1739138257593,20.0,195.28,195.25,41.2169652]
[1739138257594,0.5,195.28,195.25,41.2169652]
[1739138257788,0.5,195.28,195.27,41.2169652]
[1739138258009,0.5,195.3,195.27,41.2169652]
[1739138258301,0.5,195.3,195.29,41.2169652]
[1739138258678,1.156,195.3,195.29,41.2169652]
[1739138258989,0.5,195.25,195.24,41.2169652]
[1739138259188,1.156,195.25,195.24,41.2169652]
[1739138259385,0.5,195.25,195.24,41.2169652]
[1739138259708,1.156,195.25,195.24,41.2169652]
[1739138260009,0.5,195.28,195.24,41.2169652]
[1739138260181,1.156,195.3,195.27,41.2169652]
[1739138260378,1.6096,195.32,195.29,41.2169652]
[1739138260379,0.5,195.31,195.29,41.2169652]
[1739138260579,6.04,195.33,195.3,82.4339304]
[1739138260798,6.04,195.33,195.3,41.2169652]
[1739138261403,6.04,195.33,195.32,41.2169652]
[1739138261996,2.2656,195.39,195.32,41.2169652]
[1739138262207,6.4106,195.41,195.38,41.2169652]
[1739138262514,0.563,195.41,195.4,41.2169652]
[1739138262693,1.219,195.41,195.4,41.2169652]
[1739138263084,1.156,195.4,195.39,41.2169652]
[1739138263500,0.5,195.4,195.39,41.2169652]
[1739138263696,1.156,195.4,195.39,41.2169652]
[1739138263911,1.156,195.39,195.38,41.2169652]
[1739138264112,1.156,195.36,195.35,41.2169652]
[1739138264283,1.156,195.35,195.34,41.2169652]
[1739138264490,0.5,195.35,195.34,41.2169652]
[1739138264692,1.156,195.35,195.34,41.2169652]
[1739138264908,0.5,195.35,195.34,41.2169652]
[1739138265104,1.156,195.35,195.34,41.2169652]
[1739138265305,0.656,195.3,195.29,41.2169652]
[1739138265504,1.156,195.31,195.29,41.2169652]
[1739138265682,0.5,195.33,195.29,41.2169652]
[1739138265887,1.156,195.39,195.29,0.344]
[1739138266209,0.063,195.41,195.39,13.41184853]
[1739138266392,0.063,195.41,195.39,20.0]
[1739138267195,0.063,195.41,195.4,82.4339304]
[1739138267802,1.219,195.41,195.4,41.2169652]
[1739138268194,0.563,195.41,195.4,41.2169652]
[1739138268699,0.063,195.41,195.4,82.4339304]
[1739138268900,0.063,195.46,195.44,20.0]
[1739138269112,0.063,195.46,195.44,61.2169652]
[1739138269313,0.063,195.46,195.4,41.2169652]
[1739138269314,1.156,195.44,195.4,41.2169652]
[1739138269621,1.156,195.44,195.43,41.2169652]
[1739138270711,1.156,195.4,195.39,41.2169652]
[1739138271216,0.5,195.39,195.38,0.03]
[1739138271518,0.656,195.38,195.37,41.1469652]
[1739138271894,1.156,195.38,195.37,41.1469652]
[1739138272098,1.156,195.35,195.34,41.2169652]
[1739138272319,1.156,195.34,195.33,41.2169652]
[1739138272815,1.156,195.36,195.33,41.2169652]
[1739138273030,1.156,195.35,195.3,41.2169652]
[1739138273196,1.156,195.35,195.34,41.2169652]
[1739138273502,1.156,195.35,195.24,12.8044]
[1739138273503,1.156,195.34,195.33,41.2169652]
[1739138273703,1.156,195.33,195.23,5.1221]
[1739138273905,0.5,195.27,195.23,5.1221]
[1739138274107,0.5,195.28,195.26,41.2169652]
[1739138274307,1.156,195.3,195.27,41.2169652]
[1739138274517,1.156,195.3,195.29,41.2169652]
[1739138274731,1.156,195.3,195.2,41.2169652]
[1739138274732,1.156,195.29,195.27,41.2169652]
[1739138274899,1.156,195.29,195.25,41.2169652]
[1739138274900,1.156,195.26,195.25,41.2169652]
[1739138275102,1.156,195.25,195.24,41.2169652]
[1739138275318,0.5,195.22,195.21,41.2169652]
[1739138275619,0.5,195.21,195.13,0.5]
[1739138275835,0.5,195.22,195.15,20.0]
[1739138275995,0.5,195.23,195.21,41.2169652]
[1739138276192,0.5,195.23,195.22,41.2169652]
[1739138276424,1.156,195.21,195.2,41.2169652]
[1739138276635,0.5,195.21,195.2,41.2169652]
[1739138276941,0.5,195.22,195.2,41.2169652]
[1739138277133,0.5,195.22,195.12,12.8126]
[1739138277134,1.156,195.2,195.12,12.8126]
[1739138277445,1.156,195.2,195.19,41.2169652]
[1739138278539,1.156,195.19,195.18,41.2169652]
[1739138278720,0.5,195.17,195.12,13.41184853]
[1739138279030,0.5,195.19,195.16,41.2169652]
[1739138279236,20.0,195.25,195.11,18.91104853]
[1739138279237,0.5,195.22,195.18,41.2169652]
[1739138279412,0.5,195.24,195.14,33.41184853]
[1739138279607,0.5,195.24,195.23,41.2169652]
[1739138280139,1.156,195.2,195.19,41.2169652]
[1739138280448,1.156,195.17,195.11,18.56694853]
[1739138280938,0.5,195.19,195.12,13.41184853]
[1739138281235,81.5,195.24,195.18,41.2169652]
[1739138281411,0.656,195.28,195.18,33.41184853]
[1739138281611,0.5,195.31,195.2,14.25584853]
[1739138281924,82.156,195.32,195.2,14.25584853]
[1739138282128,81.0,195.32,195.24,13.41184853]
[1739138282343,1.156,195.37,195.31,41.2169652]
[1739138282556,81.0,195.4,195.36,41.2169652]
[1739138282846,81.0,195.4,195.3,41.2169652]
[1739138282847,82.156,195.4,195.39,41.2169652]
[1739138283047,81.0,195.4,195.39,41.2169652]
[1739138283237,0.063,195.41,195.39,82.4339304]
[1739138283544,0.063,195.41,195.39,13.41184853]
[1739138283844,0.063,195.41,195.4,82.4339304]
[1739138284013,0.063,195.41,195.4,95.84577893]
[1739138284218,7.70740066,195.43,195.42,41.2169652]
[1739138285526,0.5,195.44,195.42,41.2169652]
[1739138285930,0.063,195.46,195.42,41.2169652]
[1739138286140,0.5,195.42,195.4,41.2169652]
[1739138286341,1.156,195.4,195.32,0.344]
[1739138286525,1.156,195.4,195.31,0.844]
[1739138286721,1.156,195.4,195.34,20.0]
[1739138287049,0.5,195.35,195.31,13.41184853]
[1739138287537,0.5,195.41,195.34,41.2169652]
[1739138287738,0.5,195.41,195.4,41.2169652]
[1739138288044,0.656,195.42,195.4,82.4339304]
[1739138288213,0.063,195.46,195.41,41.2169652]
[1739138288420,0.063,195.46,195.41,13.75584853]
[1739138288631,0.063,195.49,195.47,13.41184853]
[1739138288820,0.03,195.51,195.47,13.41184853]
[1739138289639,0.03,195.51,195.5,82.4339304]
[1739138289827,0.03,195.51,195.5,95.84577893]
[1739138291828,0.03,195.51,195.5,82.4339304]
[1739138292034,0.03,195.51,195.5,41.2169652]
[1739138292335,1.186,195.51,195.5,41.2169652]
[1739138293318,1.156,195.49,195.48,41.2169652]
[1739138293630,1.156,195.47,195.46,41.2169652]
[1739138293833,0.5,195.49,195.46,41.2169652]
[1739138294024,0.5,195.49,195.48,41.2169652]
[1739138294225,1.156,195.49,195.48,41.2169652]
[1739138295134,0.5,195.47,195.46,41.2169652]
[1739138295338,0.656,195.45,195.44,41.2169652]
[1739138295940,0.03,195.51,195.44,41.2169652]
[1739138296163,0.686,195.51,195.5,41.2169652]
[1739138296447,1.186,195.51,195.5,41.2169652]
[1739138296744,0.656,195.47,195.46,41.2169652]
[1739138296938,0.656,195.47,195.44,41.2169652]
[1739138296939,0.656,195.45,195.44,41.2169652]
[1739138297128,1.156,195.45,195.44,41.2169652]
[1739138297544,1.156,195.46,195.44,41.2169652]
[1739138297743,0.5,195.46,195.44,41.2169652]
[1739138297940,0.656,195.5,195.44,41.2169652]
[1739138298249,0.03,195.51,195.49,41.2169652]
[1739138298457,1.156,195.5,195.49,41.2169652]
[1739138299151,0.53,195.51,195.49,41.2169652]
[1739138299334,0.03,195.51,195.5,41.2169652]
[1739138299741,0.03,195.51,195.49,41.2169652]
[1739138300125,0.03,195.51,195.5,41.2169652]
[1739138300442,0.03,195.51,195.5,54.62881373]
[1739138301739,0.53,195.51,195.49,41.2169652]
[1739138301942,0.03,195.51,195.5,41.2169652]
[1739138302262,0.03,195.51,195.5,54.62881373]
[1739138303146,0.03,195.51,195.49,41.2169652]
[1739138303352,1.156,195.5,195.49,41.2169652]
[1739138303869,1.156,195.46,195.45,41.2169652]
[1739138304028,0.5,195.46,195.45,41.2169652]
[1739138304351,0.5,195.48,195.45,41.2169652]
[1739138304551,0.5,195.48,195.47,41.2169652]
[1739138304757,1.156,195.48,195.47,41.2169652]
[1739138305851,1.5946,195.49,195.43,41.2169652]
[1739138305852,0.656,195.44,195.43,41.2169652]
[1739138306176,0.5,195.48,195.44,5.1166]
[1739138306331,0.03,195.51,195.47,41.2169652]
[1739138306661,0.03,195.51,195.5,41.2169652]
[1739138306865,0.53,195.59,195.51,13.41184853]
[1739138307153,0.03,195.59,195.58,41.2169652]
[1739138307353,0.03,195.59,195.58,95.84577893]
[1739138307974,0.063,195.61,195.59,13.41184853]
[1739138308175,0.063,195.61,195.58,82.4339304]
[1739138308176,0.063,195.61,195.6,82.4339304]
[1739138308376,0.656,195.68,195.61,13.41184853]
[1739138308549,0.656,195.68,195.67,41.2169652]
[1739138308883,1.156,195.68,195.67,41.2169652]
[1739138310251,0.656,195.68,195.67,41.2169652]
[1739138311343,1.156,195.68,195.67,41.2169652]
[1739138311564,0.656,195.68,195.67,41.2169652]
[1739138311768,1.156,195.68,195.67,41.2169652]
[1739138311942,0.656,195.68,195.67,41.2169652]
[1739138312143,0.11827581,195.69,195.67,41.2169652]
[1739138312381,0.11827581,195.69,195.68,82.4339304]
[1739138312672,0.11827581,195.69,195.68,41.2169652]
[1739138312974,0.11827581,195.69,195.68,82.4339304]
[1739138315844,0.03,195.71,195.69,5.1101]
[1739138316074,1.5635,195.79,195.73,20.0]
[1739138316075,0.656,195.78,195.73,20.0]
[1739138316266,0.656,195.78,195.77,41.2169652]
[1739138316472,1.156,195.78,195.77,41.2169652]
[1739138317175,0.656,195.76,195.75,41.2169652]
[1739138317377,0.5,195.74,195.73,41.2169652]
[1739138317575,0.656,195.75,195.63,5.1116]
[1739138317576,1.156,195.73,195.72,41.2169652]
[1739138317749,1.156,195.7,195.69,41.2169652]
[1739138317950,0.656,195.62,195.61,0.063]
[1739138318159,1.156,195.63,195.61,0.063]
[1739138318483,1.156,195.62,195.61,41.2799652]
[1739138318708,21.156,195.62,195.61,0.063]
[1739138318866,21.156,195.62,195.61,41.2799652]
[1739138318867,1.156,195.62,195.61,41.2799652]
[1739138319059,1.156,195.62,195.61,0.063]
[1739138319592,14.56784853,195.62,195.61,0.063]
[1739138319975,1.156,195.62,195.61,41.2799652]
[1739138321389,0.656,195.67,195.61,46.3920652]
[1739138321564,0.656,195.67,195.66,41.2169652]
[1739138321882,0.656,195.7,195.66,41.2169652]
[1739138322069,0.656,195.7,195.61,5.1751]
[1739138322070,0.656,195.69,195.61,5.1751]
[1739138322262,7.585,195.71,195.68,41.2169652]
[1739138322458,8.241,195.71,195.64,20.0]
[1739138322667,7.585,195.71,195.7,41.2169652]
[1739138323173,7.176,195.71,195.7,41.2169652]
[1739138323472,20.58784853,195.71,195.7,41.2169652]
[1739138323677,7.176,195.71,195.7,41.2169652]
[1739138324173,6.676,195.71,195.7,41.2169652]
[1739138324353,0.656,195.72,195.7,41.2169652]
[1739138324557,0.656,195.71,195.7,41.2169652]
[1739138324889,0.656,195.79,195.73,20.0]
[1739138325085,0.686,195.8,195.73,20.0]
[1739138325285,0.686,195.8,195.78,41.2169652]
[1739138325488,0.03,195.8,195.78,41.2169652]
[1739138325662,0.656,195.79,195.78,41.2169652]
[1739138326064,0.686,195.8,195.78,41.2169652]
[1739138326277,0.03,195.8,195.78,41.2169652]
[1739138326582,0.03,195.8,195.79,41.2169652]
[1739138326766,0.03,195.8,195.79,82.4339304]
[1739138326957,0.15,195.86,195.85,41.2169652]
[1739138327655,0.806,195.86,195.85,41.2169652]
[1739138327860,1.306,195.86,195.85,41.2169652]
[1739138328961,1.306,195.86,195.84,41.2169652]
[1739138329162,1.156,195.85,195.84,41.2169652]
[1739138330094,0.656,195.85,195.84,41.2169652]
[1739138330261,1.156,195.85,195.84,41.2169652]
[1739138330467,1.306,195.86,195.84,41.2169652]
[1739138330667,0.15,195.86,195.85,41.2169652]
[1739138330864,1.306,195.86,195.85,41.2169652]
[1739138332285,0.656,195.84,195.83,41.2169652]
[1739138332464,1.156,195.82,195.81,41.2169652]
[1739138332666,0.5,195.8,195.78,41.2169652]
[1739138332970,1.156,195.77,195.76,41.2169652]
[1739138333899,0.656,195.76,195.74,41.2169652]
[1739138334070,1.156,195.75,195.74,41.2169652]
[1739138335394,0.5,195.75,195.74,41.2169652]
[1739138335565,0.5,195.76,195.74,41.2169652]
[1739138335764,1.156,195.76,195.75,41.2169652]
[1739138336775,1.156,195.76,195.74,41.2169652]
[1739138336972,0.656,195.74,195.73,41.2169652]
[1739138337201,1.156,195.74,195.73,41.2169652]
[1739138337990,0.5,195.77,195.73,41.2169652]
[1739138338175,0.156,195.79,195.76,41.2169652]
[1739138338499,0.156,195.79,195.78,41.2169652]
[1739138338879,0.156,195.77,195.76,41.2169652]
[1739138339074,0.156,195.76,195.75,41.2169652]
[1739138340401,0.156,195.73,195.72,41.2169652]
[1739138340602,0.156,195.71,195.7,41.2169652]
[1739138340771,0.156,195.68,195.67,41.2169652]
[1739138340978,0.156,195.66,195.65,41.2169652]
[1739138341809,0.156,195.64,195.63,41.2169652]
[1739138343083,0.156,195.62,195.61,41.2799652]
[1739138343285,0.156,195.62,195.61,0.063]
[1739138343488,0.156,195.62,195.61,41.2799652]
[1739138343686,0.156,195.63,195.61,46.3920652]
[1739138343985,0.156,195.63,195.62,41.2169652]
[1739138345018,0.156,195.62,195.61,41.2799652]
[1739138348300,0.156,195.62,195.61,0.063]
[1739138348695,54.78481373,195.62,195.55,41.2169652]
[1739138348902,0.156,195.55,195.54,41.2169652]
[1739138349105,0.156,195.54,195.53,0.063]
[1739138349411,0.156,195.54,195.53,41.2799652]
[1739138350007,0.156,195.58,195.53,46.3940652]
[1739138350321,0.156,195.62,195.57,41.2169652]
[1739138350493,77.6954652,195.72,195.53,5.1771]
[1739138350494,0.156,195.64,195.61,41.2169652]
[1739138350685,0.156,195.64,195.56,20.0]
[1739138350891,0.156,195.66,195.59,17.8945]